Workbook

Sheet Kulud
B1: [Sündmuse nimi] sündmuse eelarve | H1: KULUD
B3: KULUD KOKKU | G3: Prognoos | H3: Tegelik
G4: =SUM(C11,C19,C25,C32,G11,G19,G24) -> 882.00 € | H4: =SUM(D11,D19,D25,D32,H11,H19,H24) -> 333.00 €
B6: Toimumiskoht | C6: Prognoos | D6: Tegelik | F6: Joogid ja suupisted | G6: Prognoos | H6: Tegelik
B7: Ruumi rent | C7: 500.00 € | F7: Söök
B8: Palgatud personal | F8: Joogid | G8: 20.00 €
B9: Varustus | F9: Laudlinad | H9: 20.00 €
B10: Lauad ja toolid | F10: Personal ja lisatasud
B11: Kokku | C11: =SUBTOTAL(109,Tabel1[Prognoos]) -> 500.00 € | D11: =SUBTOTAL(109,Tabel1[Tegelik]) -> 0.00 € | F11: Kokku | G11: =SUBTOTAL(109,Tabel3[Prognoos]) -> 20.00 € | H11: =SUBTOTAL(109,Tabel3[Tegelik]) -> 20.00 €
B13: Kaunistused | C13: Prognoos | D13: Tegelik | F13: Programm | G13: Prognoos | H13: Tegelik
B14: Lilled | C14: 200.00 € | D14: 300.00 € | F14: Esinejad
B15: Küünlad | F15: Õhtujuht | G15: 30.00 €
B16: Valgustus | F16: Reisimine
B17: Õhupallid | F17: Hotell
B18: Ühekordseks kasutamiseks mõeldud tarvikud | F18: Muu
B19: Kokku | C19: =SUBTOTAL(109,Tabel4[Prognoos]) -> 200.00 € | D19: =SUBTOTAL(109,Tabel4[Tegelik]) -> 300.00 € | F19: Kokku | G19: =SUBTOTAL(109,Tabel5[Prognoos]) -> 30.00 € | H19: =SUBTOTAL(109,Tabel5[Tegelik]) -> 0.00 €
B21: Ettevalmistused | C21: Prognoos | D21: Tegelik | F21: Hinnad | G21: Prognoos | H21: Tegelik
B22: Kutsete kujundamine | F22: Lindid/plakatid
B23: Pildistamisteenus / fotode ilmutamine | C23: 20.00 € | F23: Kingitused | G23: 100.00 €
B24: Postikulu | F24: Kokku | G24: =SUBTOTAL(109,Tabel7[Prognoos]) -> 100.00 € | H24: =SUBTOTAL(109,Tabel7[Tegelik]) -> 0.00 €
B25: Kokku | C25: =SUBTOTAL(109,Tabel6[Prognoos]) -> 20.00 € | D25: =SUBTOTAL(109,Tabel6[Tegelik]) -> 0.00 €
B27: Muud kulud | C27: Prognoos | D27: Tegelik
B28: Telefon | D28: 13.00 €
B29: Transport | C29: 12.00 €
B30: Kirjatarbed
B31: Faksiteenused
B32: Kokku | C32: =SUBTOTAL(109,Tabel8[Prognoos]) -> 12.00 € | D32: =SUBTOTAL(109,Tabel8[Tegelik]) -> 13.00 €

Sheet Sissetulekud
B1: [Sündmuse nimi] sündmuse eelarve | G1: SISSETULEKUD
B3: SISSETULEKUD KOKKU | F3: Prognoos | G3: Tegelik
F4: =SUM(F11, F18, F25, F33) -> 1,936.00 € | G4: =SUM(G11,G18,G25, G33) -> 1,831.00 €
B6: OSAVÕTT
B7: Hinnanguline arv | C7: Tegelik Arv | D7: Tüüp | E7: Hind | F7: Prognoositud tulu | G7: Tegelik tulu
B8: 300 | C8: 278 | D8: Täiskasvanud @ | E8: 5.00 € | F8: =B8*E8 -> 1,500.00 € | G8: =C8*E8 -> 1,390.00 €
B9: 197 | C9: 195 | D9: Lapsed @ | E9: 2.00 € | F9: =B9*E9 -> 394.00 € | G9: =C9*E9 -> 390.00 €
B10: 42 | C10: 51 | D10: Muu @ | E10: 1.00 € | F10: =B10*E10 -> 42.00 € | G10: =C10*E10 -> 51.00 €
B11: Kokku | F11: =SUBTOTAL(109,Tabel9[Prognoositud tulu]) -> 1,936.00 € | G11: =SUBTOTAL(109,Tabel9[Tegelik tulu]) -> 1,831.00 €
B13: PROGRAMMI REKLAAMID
B14: Hinnanguline arv | C14: Tegelik Arv | D14: Tüüp | E14: Hind | F14: Prognoositud tulu | G14: Tegelik tulu
B15: 12 | D15: Plank @ | F15: =B15*E15 -> 0.00 € | G15: =C15*E15 -> 0.00 €
C16: 158 | D16: Pool lehekülge @ | F16: =B16*E16 -> 0.00 € | G16: =C16*E16 -> 0.00 €
B17: 4 | D17: Veerand lehekülge @ | F17: =B17*E17 -> 0.00 € | G17: =C17*E17 -> 0.00 €
B18: Kokku | F18: =SUBTOTAL(109,Tabel10[Prognoositud tulu]) -> 0.00 € | G18: =SUBTOTAL(109,Tabel10[Tegelik tulu]) -> 0.00 €
B20: EKSPONENDID/MÜÜJAD
B21: Hinnanguline arv | C21: Tegelik Arv | D21: Tüüp | E21: Hind | F21: Prognoositud tulu | G21: Tegelik tulu
B22: 23 | D22: Suured näituseboksid @ | F22: =B22*E22 -> 0.00 € | G22: =C22*E22 -> 0.00 €
B23: 354 | D23: Keskmised näituseboksid @ | F23: =B23*E23 -> 0.00 € | G23: =C23*E23 -> 0.00 €
B24: 56 | D24: Väikesed näituseboksid @ | F24: =B24*E24 -> 0.00 € | G24: =C24*E24 -> 0.00 €
B25: Kokku | F25: =SUBTOTAL(109,Tabel11[Prognoositud tulu]) -> 0.00 € | G25: =SUBTOTAL(109,Tabel11[Tegelik tulu]) -> 0.00 €
B27: KAUPADE MÜÜK
B28: Hinnanguline arv | C28: Tegelik Arv | D28: Tüüp | E28: Hind | F28: Prognoositud tulu | G28: Tegelik tulu
D29: Tooted @ | F29: =B29*E29 -> 0.00 € | G29: =C29*E29 -> 0.00 €
B30: 123 | D30: Tooted @ | F30: =B30*E30 -> 0.00 € | G30: =C30*E30 -> 0.00 €
D31: Tooted @ | F31: =B31*E31 -> 0.00 € | G31: =C31*E31 -> 0.00 €
B32: 13 | D32: Tooted @ | F32: =B32*E32 -> 0.00 € | G32: =C32*E32 -> 0.00 €
B33: Kokku | F33: =SUBTOTAL(109,Tabel12[Prognoositud tulu]) -> 0.00 € | G33: =SUBTOTAL(109,Tabel12[Tegelik tulu]) -> 0.00 €

Sheet Kasumiaruande kokkuvõte
B1: [Sündmuse nimi] sündmuse eelarve | G1: KASUM
G2: Kahjumiaruande kokkuvõte
C5: Prognoos | D5: Tegelik
B6: Kogutulu | C6: =Sissetulekud!F4 -> 1,936.00 € | D6: =Sissetulekud!G4 -> 1,831.00 €
B7: Kogukulud | C7: =Kulud!G4 -> 882.00 € | D7: =Kulud!H4 -> 333.00 €
B9: Kogukasum (või kahjum) | C9: =C6-C7 -> 1,054.00 € | D9: =D6-D7 -> 1,498.00 €
